lending/lending_fUSD_20251216
["ID","MTS","AMOUNT","RATE_DAILY","PERIOD"]
[398858467,1765926633176,-26069.92554027,0.00014352,2]
[398858492,1765926638697,-37746.01196906,0.00014352,2]
[398858502,1765926638776,-692.48256436,0.00014352,2]
[398858504,1765926638787,-572.02033303,0.00014352,2]
[398858507,1765926638802,-1266.01117204,0.00014352,2]
[398858511,1765926638908,-290294.292499,0.00014352,2]
[398858512,1765926638986,-13033.95815035,0.00014352,2]
[398858513,1765926640428,-254.91010962,0.00014352,2]
[398858514,1765926640650,-15941.23605073,0.00014352,2]
[398858519,1765926643431,-881.0,0.00014352,2]
[398858539,1765926644167,-238430.93620095,0.00014352,2]
[398858540,1765926644177,-12104.8314646,0.00014353,2]
[398858541,1765926644186,-671.28821823,0.00014356,2]
[398858542,1765926644195,-151.0,0.00014381,2]
[398858543,1765926644205,-166.66,0.00014384,2]
[398858544,1765926644215,-151.0,0.00014453,2]
[398858545,1765926644225,-151.0,0.00014453,2]
[398858546,1765926644235,-500.0,0.00014455,2]
[398858547,1765926644245,-12881.3618353,0.00014456,2]
[398858548,1765926644255,-516077.858151,0.00014456,2]
[398858549,1765926644267,-40102.4153959,0.00014456,2]
[398858550,1765926644276,-500.0,0.00014548,2]
[398858551,1765926644286,-300.0,0.00014621,2]
[398858552,1765926644295,-300.0,0.00014621,2]
[398858553,1765926644305,-250.0,0.00014621,2]
[398858554,1765926644315,-908.33819012,0.00014633,2]
[398858555,1765926644324,-12104.83146456,0.00014858,2]
[398858556,1765926644337,-300.0,0.00014993,2]
[398858557,1765926644346,-300.0,0.00014993,2]
[398858558,1765926644355,-300.0,0.00015068,2]
[398858559,1765926644365,-240.73,0.0001519,2]
[398858560,1765926644375,-178.67485542,0.00015207,2]
[398858561,1765926644384,-300.0,0.0001521,2]
[398858562,1765926644394,-1000.0,0.0001521,2]
[398858563,1765926644403,-1000.0,0.0001521,2]
[398858564,1765926644413,-1000.0,0.0001521,2]
[398858565,1765926644423,-1000.0,0.0001521,2]
[398858566,1765926644434,-951.51705013,0.0001521,2]
[398858567,1765926644444,-553.64373807,0.0001521,2]
[398858568,1765926644454,-500.0,0.0001521,2]
[398858569,1765926644464,-500.0,0.0001521,2]
[398858570,1765926644473,-500.0,0.0001521,2]
[398858571,1765926644483,-432.40546565,0.0001521,2]
[398858572,1765926644493,-1000.0,0.0001521,2]
[398858573,1765926644503,-1000.0,0.0001521,2]
[398858574,1765926644512,-1000.0,0.0001521,2]
[398858575,1765926644523,-1000.0,0.0001521,2]
[398858576,1765926644532,-1000.0,0.0001521,2]
[398858577,1765926644541,-1000.0,0.0001521,2]
[398858578,1765926644550,-1000.0,0.0001521,2]
[398858579,1765926644559,-1000.0,0.0001521,2]
[398858580,1765926644569,-606.04866215,0.0001521,2]
[398858581,1765926644577,-1000.0,0.0001521,2]
[398858582,1765926644587,-1000.0,0.0001521,2]
[398858583,1765926644596,-1000.0,0.0001521,2]
[398858584,1765926644606,-2345.0,0.0001521,2]
[398858585,1765926644615,-733.95992555,0.0001521,2]
[398858586,1765926644625,-1412.0,0.0001521,2]
[398858587,1765926644634,-200.0,0.0001521,2]
[398858588,1765926644645,-207.4,0.0001521,2]
[398858589,1765926644654,-215.0738,0.0001521,2]
[398858590,1765926644665,-223.0315306,0.0001521,2]
[398858591,1765926644674,-231.28369723,0.0001521,2]
[398858592,1765926644683,-239.84119403,0.0001521,2]
[398858593,1765926644692,-248.71531821,0.0001521,2]
[398858594,1765926644702,-257.91778498,0.0001521,2]
[398858595,1765926644714,-267.46074303,0.0001521,2]
[398858596,1765926644724,-1680.0,0.00015292,2]
[398858597,1765926644734,-420.0,0.00015344,2]
[398858598,1765926644744,-908.3381901,0.00015344,2]
[398858599,1765926644755,-12104.83146456,0.00015363,2]
[398858600,1765926644764,-574.12855637,0.00015758,2]
[398858601,1765926644774,-12104.83146456,0.00015869,2]
[398858602,1765926644783,-59360.08560378,0.00016,2]
[398858603,1765926644793,-908.3381901,0.00016055,2]
[398858604,1765926644803,-1000.0,0.00016305,2]
[398858605,1765926644813,-595.37131296,0.00016306,2]
[398858606,1765926644823,-481.35955285,0.00016372,2]
[398858607,1765926644833,-12104.83146456,0.00016374,2]
[398858608,1765926644842,-500.0,0.00016438,2]
[398858609,1765926644852,-500.0,0.00016438,2]
[398858610,1765926644862,-500.0,0.00016438,2]
[398858611,1765926644871,-500.0,0.00016438,2]
[398858612,1765926644882,-500.0,0.00016438,2]
[398858613,1765926644892,-500.0,0.00016438,2]
[398858614,1765926644903,-3725.5533,0.00016509,2]
[398858615,1765926644914,-500.0,0.00016546,2]
[398858616,1765926644923,-500.0,0.00016546,2]
[398858617,1765926644933,-311.1,0.00016579,2]
[398858618,1765926644942,-277.35679052,0.00016579,2]
[398858619,1765926644951,-40102.4153959,0.00016681,2]
[398858620,1765926644960,-543.76,0.00016694,2]
[398858621,1765926644969,-150.0,0.00016713,2]
[398858622,1765926644979,-150.0,0.00016713,2]
[398858623,1765926644988,-500.0,0.00016713,2]
[398858624,1765926644997,-150.0,0.00016713,2]
[398858625,1765926645007,-500.0,0.00016713,2]
[398858626,1765926645016,-150.0,0.00016713,2]
[398858627,1765926645025,-500.0,0.00016713,2]
[398858628,1765926645035,-500.0,0.00016713,2]
[398858629,1765926645044,-500.0,0.00016713,2]
[398858630,1765926645053,-603.0,0.00016713,2]
[398858631,1765926645062,-500.0,0.00016713,2]
[398858632,1765926645072,-579.99190904,0.00016741,2]
[398858633,1765926645082,-908.3381901,0.00016767,2]
[398858634,1765926645091,-587.0,0.00016811,2]
[398858635,1765926645101,-2351.0,0.00016821,2]
[398858636,1765926645111,-151.0,0.00016836,2]
[398858637,1765926645120,-151.0,0.00016836,2]
[398858638,1765926645130,-151.0,0.00016836,2]
[398858639,1765926645140,-151.0,0.00016836,2]
[398858640,1765926645149,-151.0,0.00016836,2]
[398858641,1765926645158,-151.0,0.00016836,2]
[398858642,1765926645168,-842.506173,0.00016836,2]
[398858643,1765926645178,-842.506173,0.00016836,2]
[398858644,1765926645187,-842.506173,0.00016836,2]
[398858645,1765926645197,-842.506173,0.00016836,2]
[398858646,1765926645207,-151.0,0.00016836,2]
[398858647,1765926645216,-180.309184,0.00016836,2]
[398858648,1765926645226,-180.309184,0.00016836,2]
[398858649,1765926645236,-180.309184,0.00016836,2]
[398858650,1765926645245,-180.309184,0.00016836,2]
[398858651,1765926645255,-159.797722,0.00016836,2]
[398858652,1765926645265,-159.797722,0.00016836,2]
[398858653,1765926645274,-159.797722,0.00016836,2]
[398858654,1765926645284,-159.797722,0.00016836,2]
[398858655,1765926645294,-150.0,0.0001685,2]
[398858656,1765926645303,-150.0,0.0001685,2]
[398858657,1765926645313,-500.0,0.0001685,2]
[398858658,1765926645322,-150.0,0.0001685,2]
[398858659,1765926645332,-500.0,0.0001685,2]
[398858660,1765926645341,-162.93514152,0.0001685,2]
[398858661,1765926645351,-500.0,0.0001685,2]
[398858662,1765926645360,-500.0,0.0001685,2]
[398858663,1765926645370,-500.0,0.0001685,2]
[398858664,1765926645379,-603.0,0.0001685,2]
[398858665,1765926645388,-500.0,0.0001685,2]
[398858666,1765926645398,-617.40005154,0.00016854,2]
[398858667,1765926645408,-12104.83146456,0.00016879,2]
[398858668,1765926645417,-543.76,0.00016968,2]
[398858669,1765926645427,-151.0,0.00016983,2]
[398858670,1765926645436,-279.388165,0.00016986,2]
[398858671,1765926645446,-279.388165,0.00016986,2]
[398858672,1765926645455,-279.388165,0.00016986,2]
[398858673,1765926645465,-151.0,0.00016986,2]
[398858674,1765926645475,-279.388165,0.00016986,2]
[398858675,1765926645484,-740.27799,0.00016986,2]
[398858676,1765926645494,-740.27799,0.00016986,2]
[398858677,1765926645505,-740.27799,0.00016986,2]
[398858678,1765926645514,-740.27799,0.00016986,2]
[398858679,1765926645524,-151.0,0.00016986,2]
[398858680,1765926645538,-151.0,0.00016986,2]
[398858681,1765926645547,-151.0,0.00016986,2]
[398858682,1765926645556,-1261.517124,0.00016986,2]
[398858683,1765926645565,-1261.517124,0.00016986,2]
[398858684,1765926645574,-1261.517124,0.00016986,2]
[398858685,1765926645584,-1261.517124,0.00016986,2]
[398858686,1765926645594,-53276.63,0.00016986,2]
[398858687,1765926645603,-150.0,0.00016987,2]
[398858688,1765926645612,-150.0,0.00016987,2]
[398858689,1765926645622,-500.0,0.00016987,2]
[398858690,1765926645631,-150.0,0.00016987,2]
[398858691,1765926645641,-500.0,0.00016987,2]
[398858692,1765926645650,-500.0,0.00016987,2]
[398858693,1765926645659,-500.0,0.00016987,2]
[398858694,1765926645668,-420.0,0.00016987,2]
[398858695,1765926645677,-603.0,0.00016987,2]
[398858696,1765926645687,-500.0,0.00016987,2]
[398858697,1765926645696,-2000.0,0.00017,2]
[398858698,1765926645705,-1000.0,0.00017,2]
[398858699,1765926645714,-250.0,0.00017,2]
[398858700,1765926645724,-500.0,0.00017,2]
[398858701,1765926645733,-500.0,0.00017001,2]
[398858702,1765926645742,-500.0,0.00017002,2]
[398858703,1765926645751,-499.9999,0.00017003,2]
[398858704,1765926645760,-348.59889748,0.00017057,2]
[398858705,1765926645769,-151.0,0.00017066,2]
[398858706,1765926645778,-151.0,0.00017066,2]
[398858707,1765926645787,-151.0,0.00017066,2]
[398858708,1765926645796,-198.979646,0.00017066,2]
[398858709,1765926645806,-151.0,0.00017076,2]
[398858710,1765926645815,-151.13297348,0.00017088,2]
[398858711,1765926645824,-150.0,0.00017088,2]
[398858712,1765926645832,-150.0,0.00017088,2]
[398858713,1765926645842,-150.0,0.00017088,2]
[398858714,1765926645851,-150.20751286,0.00017088,2]
[398858715,1765926645859,-150.0,0.00017088,2]
[398858716,1765926645869,-150.0,0.00017088,2]
[398858717,1765926645878,-150.0,0.00017088,2]
[398858718,1765926645887,-150.0,0.00017088,2]
[398858719,1765926645896,-150.0,0.00017088,2]
[398858720,1765926645905,-150.0,0.00017088,2]
[398858721,1765926645915,-150.0,0.00017088,2]
[398858722,1765926645924,-150.0,0.00017088,2]
[398858723,1765926645933,-150.0,0.00017088,2]
[398858724,1765926645944,-150.0,0.00017088,2]
[398858725,1765926645954,-150.58291405,0.00017088,2]
[398858726,1765926645963,-150.76986928,0.00017088,2]
[398858727,1765926645972,-150.0,0.00017088,2]
[398858728,1765926645981,-1010.0,0.000171,2]
[398858729,1765926645991,-1798.40720067,0.00017117,2]
[398858730,1765926646000,-150.0,0.00017124,2]
[398858731,1765926646009,-150.0,0.00017124,2]
[398858732,1765926646019,-500.0,0.00017124,2]
[398858734,1765926646028,-150.0,0.00017124,2]
[398858736,1765926646039,-500.0,0.00017124,2]
[398858737,1765926646048,-500.0,0.00017124,2]
[398858738,1765926646057,-500.0,0.00017124,2]
[398858739,1765926646067,-603.0,0.00017124,2]
[398858740,1765926646077,-500.0,0.00017124,2]
[398858741,1765926646086,-150.0,0.00017131,2]
[398858742,1765926646096,-150.0,0.00017145,2]
[398858743,1765926646105,-150.0,0.00017147,2]
[398858744,1765926646114,-150.0,0.00017155,2]
[398858745,1765926646123,-150.0,0.00017167,2]
[398858746,1765926646132,-150.0,0.00017174,2]
[398858747,1765926646142,-150.0,0.00017174,2]
[398858748,1765926646150,-261.0,0.00017178,2]
[398858749,1765926646160,-150.0,0.00017178,2]
[398858750,1765926646169,-150.0,0.00017203,2]
[398858751,1765926646178,-151.0,0.00017204,2]
[398858752,1765926646187,-150.0,0.00017206,2]
[398858753,1765926646197,-151.0,0.00017207,2]
[398858754,1765926646591,-151.0,0.00017207,2]
[398858755,1765926646628,-151.0,0.00017207,2]
[398858756,1765926646644,-151.0,0.00017207,2]
[398858757,1765926646655,-279.388165,0.00017207,2]
[398858758,1765926646665,-279.388165,0.00017207,2]
[398858759,1765926646674,-279.388165,0.00017207,2]
[398858760,1765926646683,-151.0,0.00017207,2]
[398858761,1765926646692,-279.388165,0.00017207,2]
[398858762,1765926646700,-740.27799,0.00017207,2]
[398858763,1765926646710,-740.27799,0.00017207,2]
[398858764,1765926646719,-740.27799,0.00017207,2]
[398858765,1765926646728,-740.27799,0.00017207,2]
[398858766,1765926646737,-151.0,0.00017207,2]
[398858767,1765926646747,-151.0,0.00017207,2]
[398858768,1765926646756,-151.0,0.00017207,2]
[398858769,1765926646766,-151.0,0.00017207,2]
[398858770,1765926646776,-241.904183,0.00017207,2]
[398858771,1765926646785,-1255.967493,0.00017207,2]
[398858772,1765926646794,-1255.967493,0.00017207,2]
[398858773,1765926646804,-1255.967493,0.00017207,2]
[398858774,1765926646813,-1255.967493,0.00017207,2]
[398858775,1765926646822,-1255.967493,0.00017207,2]
[398858776,1765926646832,-1255.967493,0.00017207,2]
[398858777,1765926646841,-1255.967493,0.00017207,2]
[398858778,1765926646851,-1255.967493,0.00017207,2]
[398858779,1765926646860,-285.324341,0.00017207,2]
[398858780,1765926646870,-285.324341,0.00017207,2]
[398858781,1765926646880,-285.324341,0.00017207,2]
[398858782,1765926646889,-285.324341,0.00017207,2]
[398858783,1765926646898,-285.324341,0.00017207,2]
[398858784,1765926646907,-218.484896,0.00017207,2]
[398858785,1765926646916,-285.324341,0.00017207,2]
[398858786,1765926646926,-218.484896,0.00017207,2]
[398858787,1765926646935,-285.324341,0.00017207,2]
[398858788,1765926646944,-218.484896,0.00017207,2]
[398858789,1765926646953,-285.324341,0.00017207,2]
[398858790,1765926646963,-218.484896,0.00017207,2]
[398858791,1765926646972,-151.0,0.00017207,2]
[398858792,1765926646981,-218.484896,0.00017207,2]
[398858793,1765926646990,-151.0,0.00017207,2]
[398858794,1765926646999,-218.484896,0.00017207,2]
[398858795,1765926647008,-151.0,0.00017207,2]
[398858796,1765926647018,-151.0,0.00017207,2]
[398858797,1765926647027,-218.484896,0.00017207,2]
[398858798,1765926647037,-218.484896,0.00017207,2]
[398858799,1765926647047,-151.0,0.00017207,2]
[398858800,1765926647056,-151.0,0.00017207,2]
[398858801,1765926647065,-1261.517124,0.00017207,2]
[398858802,1765926647074,-1261.517124,0.00017207,2]
[398858803,1765926647084,-1261.517124,0.00017207,2]
[398858804,1765926647093,-1261.517124,0.00017207,2]
[398858805,1765926647102,-151.0,0.00017207,2]
[398858806,1765926647112,-151.0,0.00017207,2]
[398858807,1765926647122,-151.0,0.00017207,2]
[398858808,1765926647131,-151.0,0.00017207,2]
[398858809,1765926647141,-151.0,0.00017207,2]
[398858810,1765926647150,-500.0,0.00017207,2]
[398858811,1765926647159,-500.0,0.00017207,2]
[398858812,1765926647168,-500.0,0.00017207,2]
[398858813,1765926647178,-842.506173,0.00017207,2]
[398858814,1765926647187,-842.506173,0.00017207,2]
[398858815,1765926647196,-842.506173,0.00017207,2]
[398858816,1765926647206,-842.506173,0.00017207,2]
[398858817,1765926647215,-151.0,0.00017207,2]
[398858818,1765926647225,-180.309184,0.00017207,2]
[398858819,1765926647234,-180.309184,0.00017207,2]
[398858820,1765926647244,-180.309184,0.00017207,2]
[398858821,1765926647253,-180.309184,0.00017207,2]
[398858822,1765926647263,-159.797722,0.00017207,2]
[398858823,1765926647272,-159.797722,0.00017207,2]
[398858824,1765926647283,-159.797722,0.00017207,2]
[398858825,1765926647292,-159.797722,0.00017207,2]
[398858826,1765926647302,-130527.11262168,0.00017207,2]
[398858827,1765926649418,-999.0,0.00017207,2]
[398858853,1765926993997,999.0,0.00014422,3]
[398858872,1765927519732,7340.21839741,9e-05,2]
[398858894,1765927799943,2077.29,0.00022,30]
[398858900,1765927832214,-260.0,0.00013412,2]
[398858902,1765927832223,-137.84647269,0.00013412,2]
[398858905,1765927832245,-320.15352731,0.00013412,2]
[398858906,1765927832255,-1600.0,0.00013543,2]
[398858907,1765927832264,-259.97232169,0.00013548,2]
[398858908,1765927832275,-40.02767831,0.00013548,2]
[398858909,1765927832284,-250.0,0.00013577,2]
[398858910,1765927832294,-168.32,0.00013579,2]
[398858911,1765927832304,-152.62074783,0.00013605,2]
[398858912,1765927832316,-1210.65925217,0.00013605,2]
[398858913,1765927832325,-250.0,0.00013652,2]
[398858914,1765927832334,-200.0,0.00013726,2]
[398858915,1765927832343,-1943.2,0.0001378,2]
[398858916,1765927832353,-500.0,0.00013851,2]
[398858917,1765927832362,-150.59,0.00013967,2]
[398858918,1765927832374,-45.55074767,0.00014,2]
[398858919,1765927832421,-368.44925233,0.00014,2]
[398858920,1765927832430,-1200.0,0.00014149,2]
[398858921,1765927832439,-150.0,0.0001415,2]
[398858923,1765927832450,-500.0,0.0001415,2]
[398858925,1765927832459,-500.0,0.0001415,2]
[398858927,1765927832467,-500.0,0.0001415,2]
[398858929,1765927832476,-500.0,0.0001415,2]
[398858931,1765927832485,-500.0,0.0001415,2]
[398858932,1765927832495,-500.0,0.0001415,2]
[398858933,1765927832503,-500.0,0.0001415,2]
[398858934,1765927832512,-500.0,0.0001415,2]
[398858935,1765927832521,-500.0,0.0001415,2]
[398858936,1765927832529,-500.0,0.0001415,2]
[398858937,1765927832538,-500.0,0.0001415,2]
[398858939,1765927832548,-500.0,0.0001415,2]
[398858941,1765927832556,-500.0,0.0001415,2]
[398858943,1765927832565,-500.0,0.0001415,2]
[398858945,1765927832574,-244.71219228,0.0001415,2]
[398858947,1765927832582,-500.0,0.0001415,2]
[398858949,1765927832591,-500.0,0.0001415,2]
[398858951,1765927832600,-500.0,0.0001415,2]
[398858953,1765927832608,-500.0,0.0001415,2]
[398858955,1765927832617,-500.0,0.0001415,2]
[398858957,1765927832627,-150.99,0.00014151,2]
[398858959,1765927832635,-9999.99,0.00014151,2]
[398858961,1765927832644,-9559.0,0.00014151,2]
[398858963,1765927832652,-2500.0,0.00014152,2]
[398858965,1765927832661,-48642.62468469,0.00014152,2]
[398859004,1765927833567,-601.42165982,0.00014152,2]
[398859005,1765927833577,-369.39188292,0.00014152,2]
[398859006,1765927833606,-1017.87290081,0.00014152,2]
[398859031,1765927843366,-500.0,0.00014151,2]
[398859033,1765927843379,-27.50353436,0.00014151,2]
[398859034,1765927843391,-217.56311953,0.00014151,2]
[398859035,1765927843401,-3483.36203219,0.00014152,2]
[398859115,1765927844668,-716.00576166,0.00014152,2]
[398859118,1765927844687,-1602.30727724,0.00014152,2]
[398859121,1765927846324,-938.43794,0.00014152,2]
[398859122,1765927846335,-964.18176324,0.00014152,2]
[398859123,1765927846417,-1611.51,0.00014152,2]
[398859124,1765927846584,-639.22380711,0.00014152,2]
[398859127,1765928288964,181.81,0.00011505,2]
[398859128,1765928403107,-300.0,0.0001403,2]
[398859129,1765928403131,-1200.0,0.0001403,2]
[398859130,1765928403155,-6522.92784008,0.00014031,2]
[398859131,1765928403176,-398.81128103,0.00014031,2]
[398859132,1765928403198,-250.0,0.00014094,2]
[398859133,1765928403219,-286.23798223,0.00014113,2]
[398859134,1765928403588,-521.54665772,0.0001413,2]
[398859135,1765928403609,-500.0,0.0001413,2]
[398859136,1765928403630,-189.44002857,0.0001413,2]
[398859137,1765928403662,-500.0,0.0001413,2]
[398859138,1765928403682,-500.0,0.0001413,2]
[398859139,1765928403716,-582.74579914,0.0001413,2]
[398859140,1765928403739,-500.0,0.0001413,2]
[398859141,1765928403760,-276.53071626,0.0001413,2]
[398859142,1765928403782,-150.0,0.0001413,2]
[398859143,1765928403803,-2321.75969497,0.00014131,2]
[398859166,1765928654654,1647.08014488,0.0001413,5]
[398859215,1765929031375,-150.0,0.00013263,2]
[398859216,1765929031384,-783.83,0.00013699,2]
[398859217,1765929031395,-200.0,0.00013699,2]
[398859218,1765929031405,-69.45424603,0.00013699,2]
[398859219,1765929031449,-193.54575397,0.00013699,2]
[398859220,1765929031460,-170.82423752,0.00013723,2]
[398859221,1765929031469,-8.92973589,0.00013803,2]
[398859222,1765929031491,-440.75031,0.00013803,2]
[398859223,1765929031502,-2415.65504908,0.00013803,2]
[398859224,1765929031511,-300.0,0.00013847,2]
[398859225,1765929031521,-286.75054056,0.00013847,2]
[398859226,1765929031533,-363.24945944,0.00013847,2]
[398859227,1765929031542,-300.0,0.00013847,2]
[398859228,1765929031552,-1158.12064417,0.00013848,2]
[398859229,1765929031563,-264.59999972,0.00013848,2]
[398859230,1765929031582,-1306.55335611,0.00013848,2]
[398859231,1765929031591,-172.1,0.00013848,2]
[398859232,1765929031601,-19.50300186,0.00013852,2]
[398859233,1765929031613,-203.77773352,0.00013852,2]
[398859234,1765929031622,-171.0,0.00013899,2]
[398859235,1765929031632,-170.82423752,0.00013931,2]
[398859236,1765929031642,-5821.06654321,0.00013931,2]
[398859238,1765929031652,-348.95987091,0.00013931,2]
[398859240,1765929031661,-167.97886791,0.00014,2]
[398859242,1765929031671,-197.39230181,0.0001403,2]
[398859244,1765929031680,-365.0826604,0.0001403,2]
[398859246,1765929031690,-150.0,0.0001403,2]
[398859248,1765929031699,-6435.76434347,0.00014031,2]
[398859251,1765929031711,-1585.10498767,0.00014031,2]
[398859255,1765929031739,-728.33787106,0.00014031,2]
[398859257,1765929031750,-304.24350998,0.00014031,2]
[398859338,1765929037525,-3636.82058928,0.00014031,2]
[398859339,1765929037536,-1238.95791096,0.00014031,2]
[398859340,1765929037547,-995.02582332,0.00014031,2]
[398859341,1765929037616,-1664.17417803,0.00014031,2]
[398859342,1765929037627,-594553.70212312,0.00014031,2]
[398859343,1765929037645,-822.45202988,0.00014031,2]
[398859344,1765929037656,-791.20191441,0.00014031,2]
[398859346,1765929037743,-10516.64293417,0.00014031,2]
[398859393,1765929039532,-395.92311807,0.00014031,2]
[398859401,1765929039597,-1729.9999,0.00014031,2]
[398859407,1765929039669,-7182.87468006,0.00014031,2]
[398859410,1765929039867,-1623.97084956,0.00014031,2]
[398859411,1765929039878,-365.60756904,0.00014031,2]
[398859433,1765929045669,-296.33,0.00013931,2]
[398859434,1765929045681,-357.449822,0.00013931,2]
[398859435,1765929045741,-302.0,0.00013931,2]
[398859436,1765929045797,-1544.220178,0.00013931,2]
[398859437,1765929045807,-5870.63505609,0.00013931,2]
[398859438,1765929045816,-4586.14314395,0.00014031,2]
[398859480,1765929083852,150.68,7.189e-05,2]
[398859481,1765929083979,150.68,7.638e-05,2]
[398859482,1765929084242,150.68,8.087e-05,2]
[398859483,1765929084646,150.68,8.536e-05,2]
[398859484,1765929084842,150.68,8.986e-05,2]
[398859485,1765929085066,150.68,9.435e-05,2]
[398859486,1765929085311,150.68,9.884e-05,2]
[398859487,1765929085547,150.68,0.00010334,2]
[398859488,1765929086166,150.68,0.00010783,2]
[398859489,1765929086298,150.68,0.00011232,2]
[398859490,1765929086514,150.68,0.00011682,2]
[398859491,1765929134822,600.0,0.00018,30]
[398859492,1765929135219,600.0,0.00018,30]
[398859493,1765929135364,500.0,0.00018,30]
[398859494,1765929135492,500.0,0.00018,30]
[398859495,1765929135570,600.0,0.00018,30]
[398859496,1765929135814,500.0,0.00018,30]
[398859497,1765929135910,600.0,0.00018,30]
[398859498,1765929136113,500.0,0.00018,30]
[398859499,1765929136196,600.0,0.00018,30]
[398859500,1765929136956,500.0,0.00018,30]
[398859501,1765929137007,600.0,0.00018,30]
[398859502,1765929137228,500.0,0.00018,30]
[398859503,1765929137284,600.0,0.00018,30]
[398859504,1765929137408,600.0,0.00018,30]
[398859505,1765929137470,500.0,0.00018,30]
[398859506,1765929137591,500.0,0.00018,30]
[398859507,1765929137936,500.0,0.00018,30]
[398859508,1765929138066,600.0,0.00018,30]
[398859509,1765929138384,500.0,0.00018,30]
[398859510,1765929138471,600.0,0.00018,30]
[398859511,1765929138624,500.0,0.00018,30]
[398859512,1765929138788,600.0,0.00018,30]
[398859513,1765929138970,500.0,0.00018,30]
[398859514,1765929139110,600.0,0.00018,30]
[398859515,1765929139413,500.0,0.00018,30]
[398859516,1765929139485,600.0,0.00018,30]
[398859517,1765929139684,500.0,0.00018,30]
[398859518,1765929139781,600.0,0.00018,30]
[398859519,1765929140066,500.0,0.00018,30]
[398859520,1765929140129,600.0,0.00017,30]
[398859521,1765929140411,171.73568226,0.00018,30]
[398859522,1765929140546,500.0,0.00018,30]
[398859523,1765929140630,600.0,0.00017,30]
[398859524,1765929140875,500.0,0.00017,30]
[398859525,1765929140946,600.0,0.00017,30]
[398859526,1765929141070,500.0,0.00017,30]
[398859527,1765929141166,600.0,0.00017,30]
[398859528,1765929141308,500.0,0.00018,30]
[398859529,1765929141390,500.0,0.00017,30]
[398859530,1765929141507,600.0,0.00017,30]
[398859531,1765929141691,500.0,0.00018,30]
[398859532,1765929142864,500.0,0.00017,30]
[398859533,1765929142913,600.0,0.00017,30]
[398859534,1765929143015,325.30135641,0.00018,30]
[398859535,1765929143071,924.52486551,0.00017,30]
[398859536,1765929143161,600.0,0.00017,30]
[398859537,1765929143218,500.0,0.00017,30]
[398859538,1765929143353,500.0,0.00017,30]
[398859539,1765929143558,500.0,0.00017,30]
[398859540,1765929143640,600.0,0.00017,30]
[398859541,1765929143747,500.0,0.00017,30]
[398859542,1765929144394,600.0,0.00017,30]
[398859543,1765929144499,500.0,0.00017,30]
[398859544,1765929144664,600.0,0.00017,30]
[398859545,1765929144866,600.0,0.00017,30]
[398859546,1765929144981,600.0,0.00017,30]
[398859547,1765929145355,600.0,0.00017,30]
[398859548,1765929145629,636.90672338,0.00017,30]
[398859549,1765929145765,175.22992847,0.00018,30]
[398859550,1765929147113,500.0,0.00017,30]
[398859551,1765929147331,500.0,0.00017,30]
[398859552,1765929147483,500.0,0.00017,30]
[398859553,1765929147807,500.0,0.00017,30]
[398859554,1765929148141,720.97319861,0.00017,30]